bitfinex/quotes_SOLUSD_20250102
["timestamp","ask_amount","ask_price","bid_price","bid_amount"]
[1735857229045,12.33988,206.8,206.67,39.08985206]
[1735857229251,9.08985206,206.75,206.67,39.08985206]
[1735857229451,9.08985206,206.75,206.7,30.0]
[1735857232855,9.08985206,206.76,206.7,30.0]
[1735857236770,9.08985206,206.74,206.7,30.0]
[1735857237070,9.08985206,206.74,206.67,30.0]
[1735857237446,9.08985206,206.75,206.7,30.0]
[1735857237648,9.08985206,206.76,206.7,30.0]
[1735857238149,9.08985206,206.75,206.7,30.0]
[1735857242463,12.0905,206.78,206.7,30.0]
[1735857242667,9.08985206,206.76,206.7,30.0]
[1735857243248,12.0905,206.78,206.73,30.0]
[1735857243571,21.18035206,206.78,206.73,30.0]
[1735857244149,9.08985206,206.76,206.73,30.0]
[1735857245676,9.08985206,206.74,206.68,137.9]
[1735857246085,9.08985206,206.72,206.68,137.9]
[1735857247172,21.18395206,206.72,206.68,137.9]
[1735857247558,21.18395206,206.72,206.65,6.6544]
[1735857248278,9.08985206,206.7,206.65,6.6544]
[1735857250090,9.08985206,206.67,206.61,169.5195]
[1735857250388,9.08985206,206.67,206.6,6.2871]
[1735857250389,9.08985206,206.62,206.56,1.6273]
[1735857251297,0.25098,206.67,206.56,1.6273]
[1735857251603,9.08985206,206.62,206.56,1.6273]
[1735857252494,12.0982,206.65,206.56,1.6273]
[1735857252697,9.08985206,206.62,206.56,1.6273]
[1735857254293,9.08985206,206.61,206.56,1.6273]
[1735857258800,9.08985206,206.61,206.55,144.1293]
[1735857260778,9.08985206,206.6,206.55,6.2293]
[1735857261004,9.08985206,206.59,206.55,6.2293]
[1735857261502,9.08985206,206.59,206.54,30.0]
[1735857261868,9.08985206,206.59,206.52,137.9]
[1735857264409,9.08985206,206.58,206.52,137.9]
[1735857265508,9.08985206,206.58,206.51,169.5117]
[1735857268318,9.08985206,206.57,206.51,169.5117]
[1735857272317,9.08985206,206.56,206.51,169.5117]
[1735857272522,9.08985206,206.56,206.51,167.9]
[1735857273620,9.08985206,206.52,206.47,30.0]
[1735857273809,9.08985206,206.51,206.47,30.0]
[1735857274526,9.08985206,206.52,206.47,30.0]
[1735857275311,9.08985206,206.53,206.47,30.0]
[1735857275726,9.08985206,206.52,206.47,30.0]
[1735857276103,12.1039,206.55,206.47,30.0]
[1735857276314,9.08985206,206.52,206.47,30.0]
[1735857283126,9.08985206,206.53,206.47,30.0]
[1735857283331,9.08985206,206.52,206.47,30.0]
[1735857290834,9.08985206,206.51,206.47,30.0]
[1735857293337,33.287652,206.63,206.52,30.0]
[1735857293545,9.08985206,206.56,206.52,30.0]
[1735857293712,9.08985206,206.57,206.52,30.0]
[1735857294234,9.08985206,206.56,206.52,30.0]
[1735857294442,9.08985206,206.55,206.52,167.9]
[1735857298042,9.08985206,206.56,206.52,30.0]
[1735857298550,9.08985206,206.57,206.52,30.0]
[1735857300346,9.08985206,206.56,206.52,30.0]
[1735857300851,12.1,206.62,206.52,30.0]
[1735857301030,9.08985206,206.56,206.52,30.0]
[1735857301351,9.08985206,206.57,206.52,30.0]
[1735857302454,9.08985206,206.56,206.52,30.0]
[1735857303032,9.08985206,206.55,206.5,137.9]
[1735857303232,9.08985206,206.54,206.5,137.9]
[1735857306531,9.08985206,206.53,206.5,137.9]
[1735857307429,9.08985206,206.53,206.49,30.0]
[1735857308060,9.08985206,206.53,206.47,23.776884]
[1735857309435,9.08985206,206.52,206.47,161.676884]
[1735857311354,9.08985206,206.52,206.47,137.9]
[1735857313463,9.08985206,206.52,206.46,31.6626]
[1735857317560,12.35278,206.58,206.46,31.6626]
[1735857317742,9.08985206,206.52,206.46,31.6626]
[1735857321078,12.1037,206.55,206.46,31.6626]
[1735857321375,9.08985206,206.52,206.46,31.6626]
[1735857322077,9.08985206,206.52,206.46,30.0]
[1735857322376,9.08985206,206.51,206.46,30.0]
[1735857336282,0.25098,206.58,206.49,20.0]
[1735857336458,9.08985206,206.53,206.49,20.0]
[1735857336658,9.08985206,206.53,206.49,50.0]
[1735857337076,9.08985206,206.55,206.49,50.0]
[1735857339460,9.08985206,206.54,206.49,187.9]
[1735857347499,9.08985206,206.55,206.49,187.9]
[1735857350000,18.6487,206.62,206.53,30.0]
[1735857350176,9.08985206,206.57,206.53,30.0]
[1735857350495,9.08985206,206.58,206.53,30.0]
[1735857352691,18.6487,206.62,206.53,30.0]
[1735857352995,9.08985206,206.58,206.53,30.0]
[1735857354296,12.0996,206.62,206.53,30.0]
[1735857354479,9.08985206,206.6,206.53,30.0]
[1735857355495,9.08985206,206.6,206.56,30.0]
[1735857355696,9.08985206,206.61,206.56,30.0]
[1735857358203,9.08985206,206.61,206.57,23.776884]
[1735857358571,9.08985206,206.62,206.57,23.776884]
[1735857360702,9.08985206,206.61,206.57,23.776884]
[1735857361269,9.08985206,206.61,206.57,161.676884]
[1735857366618,9.08985206,206.62,206.57,161.676884]
[1735857367313,9.08985206,206.61,206.57,161.676884]
[1735857367514,9.08985206,206.61,206.57,137.9]
[1735857370725,9.08985206,206.6,206.57,137.9]
[1735857372226,9.08985206,206.61,206.57,137.9]
[1735857373608,9.08985206,206.62,206.57,137.9]
[1735857375829,9.08985206,206.61,206.57,137.9]
[1735857378137,9.08985206,206.59,206.53,167.9]
[1735857380714,9.08985206,206.57,206.53,167.9]
[1735857380935,9.08985206,206.57,206.53,137.9]
[1735857381227,9.08985206,206.57,206.51,144.0145]
[1735857383241,9.08985206,206.56,206.51,144.0145]
[1735857383420,9.08985206,206.56,206.51,137.9]
[1735857385068,9.08985206,206.56,206.5,30.0]
[1735857385249,9.08985206,206.54,206.5,30.0]
[1735857385616,9.08985206,206.54,206.48,137.9]
[1735857386139,9.08985206,206.54,206.47,167.9]
[1735857386345,9.08985206,206.53,206.47,167.9]
[1735857386944,9.08985206,206.51,206.47,30.0]
[1735857387149,9.08985206,206.5,206.47,30.0]
[1735857389448,9.08985206,206.49,206.44,167.9]
[1735857390252,9.08985206,206.49,206.44,30.0]
[1735857390439,9.08985206,206.47,206.46,20.0]
[1735857390949,9.08985206,206.47,206.41,174.1524]
[1735857391343,9.08985206,206.47,206.44,20.0]
[1735857392650,9.08985206,206.48,206.44,20.0]
[1735857395441,9.08985206,206.47,206.44,20.0]
[1735857402264,9.08985206,206.47,206.41,167.9]
[1735857402644,9.08985206,206.45,206.41,167.9]
[1735857402844,9.08985206,206.44,206.41,167.9]
[1735857403759,9.08985206,206.43,206.41,167.9]
[1735857405159,9.08985206,206.43,206.41,30.0]
[1735857406057,1.5942,206.45,206.35,167.9]
[1735857406238,1.5942,206.45,206.35,30.0]
[1735857406441,13.7037,206.45,206.35,30.0]
[1735857406660,9.08985206,206.39,206.35,30.0]
[1735857407768,9.08985206,206.4,206.35,30.0]
[1735857409648,9.08985206,206.38,206.35,30.0]
[1735857409849,9.08985206,206.39,206.35,30.0]
[1735857411158,9.08985206,206.39,206.33,137.9]
[1735857411360,9.08985206,206.37,206.33,137.9]
[1735857414563,9.08985206,206.38,206.33,137.9]
[1735857415259,9.08985206,206.38,206.32,30.0]
[1735857415580,12.1112,206.43,206.35,30.0]
[1735857415749,9.08985206,206.43,206.36,9.08985206]
[1735857415951,9.08985206,206.43,206.38,30.0]
[1735857417091,9.08985206,206.42,206.38,30.0]
[1735857417979,1.5942,206.45,206.38,30.0]
[1735857417980,9.08985206,206.44,206.38,30.0]
[1735857418791,9.08985206,206.45,206.38,167.9]
[1735857423695,9.08985206,206.44,206.38,167.9]
[1735857427684,9.08985206,206.46,206.41,30.0]
[1735857429896,9.08985206,206.45,206.41,167.9]
[1735857434601,9.08985206,206.45,206.41,137.9]
[1735857436276,9.08985206,206.43,206.41,20.0]
[1735857438404,9.08985206,206.45,206.41,20.0]
[1735857443699,9.08985206,206.43,206.38,30.0]
[1735857443887,9.08985206,206.43,206.35,30.0]
[1735857448199,9.08985206,206.43,206.35,167.9]
[1735857465207,9.08985206,206.41,206.35,30.0]
[1735857465909,9.08985206,206.39,206.35,30.0]
[1735857466091,9.08985206,206.39,206.34,137.9]
[1735857466397,9.08985206,206.38,206.34,137.9]
[1735857466602,9.08985206,206.38,206.35,20.0]
[1735857467215,12.1106,206.43,206.35,20.0]
[1735857467404,9.08985206,206.4,206.35,50.0]
[1735857469498,12.1106,206.43,206.35,50.0]
[1735857469803,9.08985206,206.4,206.35,50.0]
[1735857470117,9.08985206,206.4,206.35,30.0]
[1735857474002,9.08985206,206.42,206.38,20.0]
[1735857474202,10.72855206,206.44,206.38,50.0]
[1735857474921,10.72855206,206.44,206.38,49.5]
[1735857476322,9.08985206,206.44,206.38,49.5]
[1735857476519,9.08985206,206.44,206.38,187.4]
[1735857477317,1.5761,206.49,206.41,30.0]
[1735857477620,9.08985206,206.48,206.44,30.0]
[1735857479604,9.08985206,206.49,206.44,30.0]
[1735857479996,1.5685,206.54,206.47,30.0]
[1735857480314,9.08985206,206.51,206.47,30.0]
[1735857481307,9.08985206,206.5,206.47,30.0]
[1735857483530,9.08985206,206.51,206.47,30.0]
[1735857487837,9.08985206,206.5,206.47,30.0]
[1735857488932,9.08985206,206.53,206.5,20.0]
[1735857489117,9.08985206,206.53,206.5,50.0]
[1735857489435,9.08985206,206.54,206.5,50.0]
[1735857490008,9.08985206,206.53,206.5,50.0]
[1735857491646,9.08985206,206.55,206.5,187.9]
[1735857493548,9.08985206,206.56,206.5,187.9]
[1735857495442,9.08985206,206.54,206.5,50.0]
[1735857495631,9.08985206,206.53,206.5,50.0]
[1735857495837,9.08985206,206.51,206.47,30.0]
[1735857497668,9.08985206,206.5,206.47,20.0]
[1735857500162,9.08985206,206.52,206.47,20.0]
[1735857502858,9.08985206,206.5,206.44,167.9]
[1735857513657,0.25098,206.55,206.44,167.9]
[1735857513839,9.08985206,206.51,206.44,167.9]
[1735857517456,9.08985206,206.51,206.44,176.98985206]
[1735857521362,9.08985206,206.51,206.47,30.0]
[1735857521550,9.08985206,206.53,206.47,30.0]
[1735857524571,12.1013,206.59,206.47,30.0]
[1735857524776,9.08985206,206.53,206.47,30.0]
[1735857528583,0.25098,206.58,206.47,30.0]
[1735857528785,9.08985206,206.53,206.47,30.0]
[1735857529276,9.08985206,206.55,206.47,30.0]
[1735857530564,9.08985206,206.55,206.47,39.08985206]
[1735857532182,9.08985206,206.55,206.47,30.0]
[1735857532382,9.08985206,206.55,206.47,39.08985206]
[1735857535077,9.08985206,206.55,206.47,176.98985206]
[1735857541191,0.25098,206.58,206.47,176.98985206]
[1735857541394,9.08985206,206.55,206.47,176.98985206]
[1735857543896,9.08985206,206.55,206.48,9.08985206]
[1735857547378,9.08985206,206.54,206.47,176.98985206]
[1735857547717,9.08985206,206.55,206.48,16.96265206]
[1735857550486,9.08985206,206.56,206.48,16.96265206]
[1735857553003,9.08985206,206.56,206.48,154.86265206]
[1735857553377,9.08985206,206.57,206.5,176.98985206]
[1735857553887,12.0997,206.62,206.51,146.98985206]
[1735857554290,9.08985206,206.58,206.51,146.98985206]
[1735857555080,9.08985206,206.57,206.51,137.9]
[1735857559492,12.0997,206.62,206.51,137.9]
[1735857559694,9.08985206,206.57,206.51,137.9]
[1735857573994,13.6476,206.65,206.53,30.0]
[1735857574331,9.08985206,206.59,206.53,30.0]
[1735857577024,9.08985206,206.59,206.53,167.9]
[1735857579721,9.08985206,206.6,206.53,167.9]
[1735857582425,9.08985206,206.59,206.53,167.9]
[1735857587129,0.25098,206.64,206.53,167.9]
[1735857587335,9.08985206,206.6,206.53,167.9]
[1735857591319,9.08985206,206.61,206.56,30.0]
[1735857592219,13.6476,206.65,206.56,30.0]
[1735857592531,9.08985206,206.61,206.56,30.0]
[1735857600655,9.08985206,206.58,206.54,145.619]
[1735857600835,9.08985206,206.56,206.54,137.9]
[1735857601948,12.1,206.61,206.54,137.9]
[1735857602128,9.08985206,206.56,206.54,137.9]
[1735857602448,9.08985206,206.55,206.49,7.7272]
[1735857602639,9.08985206,206.53,206.49,7.7272]
[1735857603536,9.08985206,206.52,206.45,145.50731991]
[1735857603738,9.08985206,206.5,206.45,137.9]
[1735857603921,9.08985206,206.5,206.48,20.0]
[1735857605225,9.08985206,206.51,206.48,20.0]
[1735857608841,9.08985206,206.51,206.44,37.83]
[1735857609424,9.08985206,206.5,206.44,37.83]
[1735857611049,9.08985206,206.49,206.44,7.83]
[1735857611830,9.08985206,206.49,206.43,137.9]
[1735857612539,9.08985206,206.49,206.44,20.0]
[1735857612742,9.08985206,206.47,206.44,20.0]
[1735857615368,0.25098,206.52,206.44,20.0]
[1735857615666,9.08985206,206.5,206.44,20.0]
[1735857620271,9.08985206,206.48,206.44,20.0]
[1735857625339,9.08985206,206.5,206.44,50.0]
[1735857628547,9.08985206,206.48,206.44,20.0]
[1735857630312,9.08985206,206.48,206.41,30.0]
[1735857630456,9.08985206,206.46,206.41,30.0]
[1735857635261,9.08985206,206.46,206.39,146.0558]
[1735857635262,9.08985206,206.46,206.42,20.0]
[1735857636485,9.08985206,206.46,206.39,8.1558]
[1735857644171,12.1069,206.5,206.39,8.1558]
[1735857644378,9.08985206,206.45,206.39,8.1558]
[1735857646308,9.08985206,206.45,206.38,167.9]
[1735857649802,1.5223,206.48,206.38,167.9]
[1735857649984,9.08985206,206.45,206.38,167.9]
[1735857651380,1.5223,206.48,206.38,167.9]
[1735857651580,9.08985206,206.45,206.38,167.9]
[1735857656005,1.5223,206.48,206.38,167.9]
[1735857656511,9.08985206,206.45,206.38,167.9]
[1735857657595,19.7495,206.53,206.41,50.0]
[1735857657790,19.7495,206.53,206.41,187.9]
[1735857657791,9.08985206,206.47,206.41,187.9]
[1735857659283,19.7495,206.53,206.41,187.9]
[1735857659489,1.5838,206.53,206.44,30.0]
[1735857659690,24.23590557,206.57,206.44,30.0]
[1735857659889,9.08985206,206.52,206.44,167.9]
[1735857663214,7.9818,206.58,206.44,167.9]
[1735857663524,9.08985206,206.51,206.44,167.9]
[1735857663812,0.25098,206.57,206.44,167.9]
[1735857664011,9.08985206,206.5,206.44,167.9]
[1735857672717,9.08985206,206.48,206.44,167.9]
[1735857675921,12.1,206.61,206.5,20.0]
[1735857676108,9.08985206,206.53,206.5,50.0]
[1735857677410,9.08985206,206.55,206.5,50.0]
[1735857682727,12.1,206.61,206.5,50.0]
[1735857682728,0.25098,206.62,206.5,187.9]
[1735857682930,9.08985206,206.56,206.5,187.9]
[1735857687232,9.08985206,206.58,206.5,196.98985206]
[1735857697740,9.08985206,206.58,206.5,187.9]
[1735857697942,0.25098,206.62,206.5,187.9]
[1735857698125,6.4008,206.67,206.56,50.0]
[1735857698332,9.08985206,206.6,206.56,50.0]
[1735857699654,0.25098,206.67,206.56,50.0]
[1735857700146,9.08985206,206.62,206.56,50.0]
[1735857701155,9.08985206,206.6,206.56,50.0]
[1735857702752,9.08985206,206.58,206.53,167.9]
[1735857703058,9.08985206,206.54,206.46,31.5888]
[1735857703344,9.08985206,206.52,206.46,31.5888]
[1735857705526,9.08985206,206.54,206.49,20.0]
[1735857709254,0.25098,206.59,206.49,20.0]
[1735857709565,9.08985206,206.54,206.49,20.0]
[1735857720667,0.25098,206.59,206.49,20.0]
[1735857720868,9.08985206,206.54,206.49,20.0]
[1735857731375,12.1007,206.6,206.49,50.0]
[1735857731560,9.08985206,206.56,206.49,50.0]
[1735857735684,9.08985206,206.56,206.49,187.9]
[1735857738085,12.1007,206.6,206.49,187.9]
[1735857738288,9.08985206,206.57,206.49,187.9]
[1735857753016,9.08985206,206.57,206.52,30.0]
[1735857758626,9.08985206,206.59,206.52,30.0]
[1735857758929,1.6609,206.61,206.52,30.0]
[1735857759138,9.08985206,206.58,206.52,30.0]
[1735857761762,1.6609,206.61,206.52,30.0]
[1735857761963,9.08985206,206.58,206.52,30.0]
[1735857772850,9.08985206,206.56,206.52,30.0]
[1735857773566,9.08985206,206.54,206.52,30.0]
[1735857776958,1.6609,206.61,206.52,30.0]
[1735857777155,9.08985206,206.57,206.52,30.0]
[1735857777363,12.0998,206.62,206.52,30.0]
[1735857777561,9.08985206,206.58,206.52,30.0]
[1735857777754,12.0998,206.62,206.52,30.0]
[1735857778060,9.08985206,206.58,206.52,30.0]
[1735857804000,9.08985206,206.6,206.55,30.0]
[1735857819119,9.08985206,206.6,206.55,167.9]
[1735857822424,12.099,206.63,206.55,167.9]
[1735857822619,9.08985206,206.6,206.55,137.9]
[1735857822929,9.08985206,206.59,206.55,137.9]
[1735857823127,9.08985206,206.56,206.48,37.59087896]
[1735857823432,9.08985206,206.54,206.48,7.59087896]
[1735857823622,9.08985206,206.52,206.48,7.59087896]
[1735857823816,9.08985206,206.52,206.45,183.59027896]
[1735857824630,9.08985206,206.52,206.45,175.9994]
[1735857828204,9.08985206,206.52,206.45,38.0994]
[1735857834429,12.1037,206.55,206.45,30.0]
[1735857834430,9.08985206,206.5,206.45,30.0]
[1735857834626,9.08985206,206.5,206.44,137.9]
[1735857835108,9.08985206,206.52,206.44,137.9]
[1735857836231,12.1037,206.55,206.48,20.0]
[1735857836439,9.08985206,206.52,206.48,20.0]
[1735857836610,9.08985206,206.52,206.45,39.08985206]
[1735857839135,0.12549,206.54,206.45,39.08985206]
[1735857839433,9.08985206,206.52,206.45,30.0]
[1735857843428,9.08985206,206.52,206.44,137.9]
[1735857843629,9.08985206,206.52,206.45,20.0]
[1735857857322,1.77679,206.54,206.45,20.0]
[1735857857522,9.08985206,206.51,206.45,20.0]
[1735857860471,9.08985206,206.51,206.43,137.9]
[1735857861631,1.5651,206.48,206.43,20.0]
[1735857862351,9.08985206,206.47,206.43,20.0]
[1735857865751,1.5651,206.48,206.43,20.0]
[1735857865952,10.65495206,206.48,206.43,20.0]
[1735857871258,10.65495206,206.48,206.4,146.98985206]
[1735857873564,10.65495206,206.48,206.41,9.08985206]
[1735857873766,1.5651,206.48,206.41,9.08985206]
[1735857876962,1.5651,206.48,206.4,137.9]
[1735857877362,1.5651,206.48,206.4,146.98985206]
[1735857877664,1.5651,206.48,206.4,137.9]
[1735857877866,9.08985206,206.47,206.4,137.9]
[1735857878068,1.5651,206.48,206.4,137.9]
[1735857878370,10.65495206,206.48,206.4,137.9]
[1735857880271,1.5651,206.48,206.4,137.9]
[1735857880562,9.08985206,206.47,206.4,137.9]
[1735857882268,1.5651,206.48,206.4,137.9]
[1735857882466,9.08985206,206.47,206.4,137.9]
[1735857884654,14.47825349,206.57,206.46,30.0]
[1735857884860,9.08985206,206.54,206.49,20.0]
[1735857889852,12.1025,206.57,206.49,20.0]
[1735857890174,9.08985206,206.55,206.49,20.0]
[1735857891181,12.1025,206.57,206.49,20.0]
[1735857891364,9.08985206,206.54,206.49,20.0]
[1735857891875,9.08985206,206.54,206.5,30.0]
[1735857893264,1.5995,206.58,206.5,30.0]
[1735857893478,9.08985206,206.55,206.5,30.0]
[1735857899479,12.1007,206.6,206.5,30.0]
[1735857899687,9.08985206,206.55,206.5,30.0]
[1735857941894,9.08985206,206.57,206.5,30.0]
[1735857943213,12.1007,206.6,206.5,30.0]
[1735857943417,9.08985206,206.58,206.5,167.9]
[1735857944195,12.1007,206.6,206.5,167.9]
[1735857944603,9.08985206,206.57,206.5,167.9]
[1735857946424,12.1007,206.6,206.5,167.9]
[1735857946609,9.08985206,206.56,206.5,167.9]
[1735857946810,12.1007,206.6,206.5,167.9]
[1735857947423,9.08985206,206.57,206.5,167.9]
[1735857947615,12.1007,206.6,206.5,167.9]
[1735857947815,9.08985206,206.56,206.5,167.9]
[1735857948301,12.1007,206.6,206.5,167.9]
[1735857948497,9.08985206,206.56,206.5,174.2533]
[1735857949033,9.08985206,206.58,206.5,174.2533]
[1735857949902,9.08985206,206.58,206.5,175.8398]
[1735857951522,9.08985206,206.58,206.53,20.0]
[1735857951706,9.08985206,206.58,206.54,30.0]
[1735857953115,15.53317633,206.66,206.57,30.0]
[1735857953424,9.08985206,206.6,206.57,30.0]
[1735857958626,9.08985206,206.61,206.57,30.0]
[1735857959226,9.08985206,206.58,206.57,167.9]
[1735857963330,9.08985206,206.58,206.57,30.0]
[1735857965229,12.0968,206.67,206.57,30.0]
[1735857965438,9.08985206,206.6,206.57,30.0]
[1735857968543,9.08985206,206.62,206.57,30.0]
[1735857969247,9.08985206,206.62,206.6,20.0]
[1735857969429,7.58481991,206.72,206.65,30.0]
[1735857969629,7.58481991,206.72,206.65,178.63585206]
[1735857969830,7.58481991,206.72,206.67,9.08985206]
[1735857970219,7.58481991,206.72,206.68,30.0]
[1735857970621,12.0905,206.78,206.68,30.0]
[1735857970820,9.08985206,206.76,206.68,30.0]
[1735857974332,9.08985206,206.74,206.68,30.0]
[1735857981744,1.5026,206.8,206.68,167.9]
[1735857981947,9.08985206,206.75,206.68,167.9]
[1735857983747,9.08985206,206.75,206.72,30.0]
[1735857983950,9.08985206,206.75,206.69,30.0]
[1735857985863,1.5026,206.8,206.69,30.0]
[1735857986031,9.08985206,206.76,206.69,30.0]
[1735857987468,9.08985206,206.75,206.69,167.9]
[1735857992549,1.5026,206.8,206.69,167.9]
[1735857992749,9.08985206,206.77,206.69,167.9]
[1735857995378,9.08985206,206.76,206.69,167.9]
[1735858001384,12.0889,206.8,206.69,167.9]
[1735858001668,9.08985206,206.77,206.69,167.9]
[1735858002174,12.0889,206.8,206.69,167.9]
[1735858002487,9.08985206,206.76,206.69,167.9]
[1735858002946,12.0889,206.8,206.69,167.9]
[1735858003346,9.08985206,206.77,206.69,167.9]
[1735858004193,12.0889,206.8,206.69,167.9]
[1735858004469,9.08985206,206.77,206.69,167.9]
[1735858005956,9.08985206,206.77,206.72,20.0]
[1735858008176,12.0889,206.8,206.72,20.0]
[1735858008380,9.08985206,206.78,206.72,20.0]
[1735858012764,9.08985206,206.78,206.73,30.0]
[1735858017193,9.08985206,206.78,206.73,167.9]
[1735858017384,9.08985206,206.76,206.73,167.9]
[1735858017693,9.08985206,206.78,206.73,167.9]
[1735858023573,12.0873,206.83,206.73,167.9]
[1735858023795,9.08985206,206.79,206.73,167.9]
[1735858024997,12.0873,206.83,206.73,167.9]
[1735858025198,9.08985206,206.79,206.73,167.9]
[1735858028506,12.0873,206.83,206.73,167.9]
[1735858028682,9.08985206,206.8,206.73,167.9]
[1735858029197,9.08985206,206.82,206.77,30.0]
[1735858030976,9.08985206,206.78,206.73,167.9]
[1735858032476,0.12549,206.84,206.73,167.9]
[1735858032676,9.08985206,206.8,206.73,167.9]
[1735858035702,9.08985206,206.82,206.73,167.9]
[1735858037089,0.12549,206.84,206.73,167.9]
[1735858037289,9.08985206,206.82,206.73,167.9]
[1735858044005,9.08985206,206.82,206.76,20.0]
[1735858046812,0.12549,206.84,206.76,20.0]
[1735858046986,9.08985206,206.82,206.76,20.0]
[1735858054992,9.08985206,206.83,206.76,20.0]
[1735858062527,9.08985206,206.83,206.77,20.0]
[1735858066733,44.05679217,206.88,206.77,20.0]
[1735858067027,9.08985206,206.83,206.77,20.0]
[1735858067407,44.05679217,206.88,206.77,20.0]
[1735858067707,9.08985206,206.84,206.77,20.0]
[1735858070011,44.05679217,206.88,206.77,20.0]
[1735858070218,9.08985206,206.84,206.77,20.0]
[1735858071631,44.05679217,206.88,206.77,20.0]
[1735858071824,9.08985206,206.83,206.77,20.0]
[1735858080840,9.08985206,206.85,206.78,8.1543]
[1735858081039,9.08985206,206.85,206.79,30.0]
[1735858087236,9.08985206,206.83,206.79,30.0]
[1735858090461,9.08985206,206.85,206.79,30.0]
[1735858091146,12.0843,206.88,206.79,30.0]
[1735858091451,12.0843,206.88,206.79,39.08985206]
[1735858091961,9.08985206,206.86,206.79,39.08985206]
[1735858092667,12.0843,206.88,206.79,39.08985206]
[1735858092827,9.08985206,206.86,206.79,39.08985206]
[1735858093661,9.08985206,206.86,206.79,30.0]
[1735858094351,12.0843,206.88,206.79,30.0]
[1735858094673,9.08985206,206.86,206.79,30.0]
[1735858099887,9.08985206,206.86,206.8,1.21067967]
[1735858101050,9.08985206,206.86,206.81,1.21067967]
[1735858101571,9.08985206,206.86,206.82,1.21067967]
[1735858101946,9.08985206,206.86,206.79,167.9]
[1735858102483,9.08985206,206.86,206.82,30.0]
[1735858103273,9.08985206,206.86,206.83,1.21067122]
[1735858104067,9.08985206,206.86,206.84,1.21067122]
[1735858104890,9.08985206,206.86,206.82,30.0]
[1735858105761,9.08985206,206.87,206.83,1.21060047]
[1735858106391,9.08985206,206.87,206.84,1.21060047]
[1735858107080,9.08985206,206.87,206.82,30.0]
[1735858107863,9.08985206,206.87,206.83,1.21058901]
[1735858108255,9.08985206,206.87,206.84,1.21058901]
[1735858108971,9.08985206,206.87,206.82,30.0]
[1735858109577,9.08985206,206.87,206.83,1.21054657]
[1735858110302,9.08985206,206.87,206.84,1.21054657]
[1735858110780,9.08985206,206.87,206.82,30.0]
[1735858111581,9.08985206,206.87,206.83,1.21054539]
[1735858112079,9.08985206,206.87,206.84,1.21054539]
[1735858112595,9.08985206,206.87,206.82,30.0]
[1735858113396,9.08985206,206.87,206.83,1.21055012]
[1735858113990,9.08985206,206.87,206.84,1.21055012]
[1735858114810,9.08985206,206.87,206.82,30.0]
[1735858115408,9.08985206,206.87,206.83,1.21055497]
[1735858116407,9.08985206,206.87,206.84,1.21055497]
[1735858117007,9.08985206,206.87,206.82,30.0]
[1735858118124,9.08985206,206.87,206.83,1.21054018]
[1735858118416,9.08985206,206.87,206.84,1.21054018]
[1735858118883,9.08985206,206.87,206.82,30.0]
[1735858119712,9.08985206,206.87,206.83,1.21054018]
[1735858120222,9.08985206,206.87,206.84,1.21054018]
[1735858120736,9.08985206,206.87,206.82,30.0]
[1735858121211,9.08985206,206.87,206.83,1.21052783]
[1735858121409,12.0824,206.92,206.83,1.21052783]
[1735858121890,9.08985206,206.88,206.84,1.21052783]
[1735858122817,9.08985206,206.88,206.82,30.0]
[1735858123224,9.08985206,206.88,206.83,1.21053429]
[1735858124010,9.08985206,206.88,206.84,1.21053429]
[1735858124630,9.08985206,206.88,206.82,30.0]
[1735858125405,9.08985206,206.88,206.83,1.21053849]